[Event "FIDE WCCC U8 2018"]
[Site "Santiago de Compostela"]
[Date "2018.11.14"]
[Round "10"]
[White "Chen, Zhiyuan"]
[Black "Balint, Peter"]
[Result "1-0"]
[ECO "A06"]
[WhiteElo "1459"]
[BlackElo "1563"]
[Annotator "NA RC"]
[PlyCount "77"]
[EventDate "2018.11.04"]
[EventType "swiss"]
[EventCountry "ESP"]
[SourceTitle "playchess.com"]
[Source "ChessBase"]
[SourceQuality "1"]
[TimeControl "40/5400+30:1800+30"]

1. Nf3 {[%emt 0:00:00]} d5 {[%emt 0:00:00]} 2. g3 {[%emt 0:00:00]} Nf6 {[%emt 0:00:00]} 3. Bg2 {[%emt 0:00:00]} e6 {[%emt 0:00:00]} 4. O-O {[%emt 0:00:00]} Be7 {[%emt 0:00:03]} 5. d4 {[%emt 0:00:00]} O-O {[%emt 0:00:06]} 6. c4 {[%emt 0:00:01]} dxc4 {[%emt 0:00:10]} 7. Ne5 {[%emt 0:00:06]} c6 {[%emt 0:09:34]} 8. Nxc4 {[%emt 0:00:41]} Nd5 {[%emt 0:10:22]} 9. e4 {[%emt 0:03:46]} Nb6 {[%emt 0:04:07]} 10. Ne3 {[%emt 0:06:14]} N8d7 {[%emt 0:11:21]} 11. Nc3 {[%emt 0:00:32]} Re8 {[%emt 0:05:13]} 12. b3 {[%emt 0:01:10]} e5 {[%emt 0:04:16]} 13. d5 {[%emt 0:00:37]} cxd5 {[%emt 0:03:42]} 14. Ncxd5 {[%emt 0:00:55]} Nxd5 {[%emt 0:07:27]} 15. Nxd5 {[%emt 0:00:44]} Nf6 {[%emt 0:03:16]} 16. Bb2 {[%emt 0:08:52]} Nxd5 {[%emt 0:07:28]} 17. exd5 {[%emt 0:00:21]} Bf6 {[%emt 0:04:20]} 18. Be4 {[%emt 0:07:29]} g6 {[%emt 0:06:28]} 19. Re1 {[%emt 0:01:26]} Bg7 {[%emt 0:07:06]} 20. Qd2 {[%emt 0:07:58]} f5 {[%emt 0:02:53]} 21. Bg2 {[%emt 0:00:31]} Rb8 22. d6 {[%emt 0:04:06]} Bd7 {[%emt 0:05:40]} 23. Bxe5 {[%emt 0:06:19]} Bxe5 {[%emt 0:00:17]} 24. Qd5+ {[%emt 0:01:13]} Kg7 {[%emt 0:00:29]} 25. Rxe5 {[%emt 0:00:20]} Bc6 {[%emt 0:00:49]} 26. Rxe8 {[%emt 0:05:20]} Qxe8 {[%emt 0:00:14]} 27. Qd4+ {[%emt 0:00:07]} Kg8 {[%emt 0:00:23]} 28. Bf1 {[%emt 0:02:32]} Qe4 {[%emt 0:01:20]} 29. Bc4+ {[%emt 0:00:12]} Bd5 {[%emt 0:05:11]} 30. Bxd5+ {[%emt 0:00:07]} Qxd5 {[%emt 0:00:11]} 31. Qxd5+ {[%emt 0:00:05]} Kg7 {[%emt 0:00:05]} 32. d7 {[%emt 0:00:07]} Rd8 {[%emt 0:00:14]} 33. Re1 {[%emt 0:00:13]} Kf8 {[%emt 0:00:30]} 34. Qd6+ {[%emt 0:00:07]} Kg7 {[%emt 0:00:14]} 35. Qe7+ {[%emt 0:00:10]} Kh6 {[%emt 0:00:08]} 36. Qh4+ {[%emt 0:00:10]} Kg7 {[%emt 0:00:04]} 37. Re7+ {[%emt 0:00:04]} Kf8 {[%emt 0:00:07]} 38. Qf6+ {[%emt 0:00:06]} Kg8 {[%emt 0:00:05]} 39. Qg7# {[%emt 0:00:07] Ra8} 1-0

[Event "FIDE WCCC U8 2018"]
[Site "Santiago de Compostela"]
[Date "2018.11.14"]
[Round "10"]
[White "Levitan, Caleb Levi"]
[Black "Nurgaliyev, Sauat"]
[Result "0-1"]
[ECO "B30"]
[WhiteElo "1087"]
[BlackElo "1764"]
[Annotator "NA RC"]
[PlyCount "100"]
[EventDate "2018.11.04"]
[EventType "swiss"]
[EventCountry "ESP"]
[SourceTitle "playchess.com"]
[Source "ChessBase"]
[SourceQuality "1"]
[TimeControl "40/5400+30:1800+30"]

1. e4 {[%emt 0:00:00]} c5 {[%emt 0:00:00]} 2. Nf3 {[%emt 0:00:00]} Nc6 {[%emt 0:00:00]} 3. d3 {[%emt 0:00:48]} g6 {[%emt 0:01:11]} 4. Be2 {[%emt 0:01:49]} Bg7 {[%emt 0:01:15]} 5. O-O {[%emt 0:00:30]} e6 {[%emt 0:01:44]} 6. Nbd2 {[%emt 0:02:27]} Nge7 {[%emt 0:02:37]} 7. Rb1 {[%emt 0:00:20]} O-O {[%emt 0:02:14]} 8. b3 {[%emt 0:00:22]} d5 {[%emt 0:08:15]} 9. Bb2 {[%emt 0:00:54]} d4 {[%emt 0:04:46]} 10. Ba3 {[%emt 0:01:29]} b6 {[%emt 0:01:56]} 11. h3 {[%emt 0:00:36]} e5 {[%emt 0:05:44]} 12. Nh2 {[%emt 0:01:16]} f5 {[%emt 0:04:35]} 13. exf5 {[%emt 0:00:43]} gxf5 {[%emt 0:00:57]} 14. Bf3 {[%emt 0:00:24]} Nd5 {[%emt 0:09:10]} 15. Bxd5+ {[%emt 0:00:36]} Qxd5 {[%emt 0:00:03]} 16. Qf3 {[%emt 0:00:21]} Qe6 {[%emt 0:04:57]} 17. Rfe1 {[%emt 0:04:21]} Rf6 {[%emt 0:10:09]} 18. Nc4 {[%emt 0:01:13]} Rb8 {[%emt 0:01:19]} 19. Qe2 {[%emt 0:00:55]} Rg6 {[%emt 0:01:26]} 20. Nf3 {[%emt 0:00:38]} Bb7 {[%emt 0:02:29]} 21. Kh2 {[%emt 0:07:31]} b5 {[%emt 0:01:06]} 22. Ncd2 {[%emt 0:01:10]} b4 {[%emt 0:05:08]} 23. Bc1 {[%emt 0:00:57]} Ne7 {[%emt 0:10:42]} 24. Nc4 {[%emt 0:02:01]} Nd5 {[%emt 0:09:34]} 25. Bd2 {[%emt 0:01:24]} Re8 {[%emt 0:03:24]} 26. Rg1 {[%emt 0:03:22]} e4 {[%emt 0:01:50]} 27. Nh4 {[%emt 0:02:00]} Rf6 {[%emt 0:01:12]} 28. Bg5 {[%emt 0:01:50]} Rff8 {[%emt 0:00:37]} 29. Rbe1 {[%emt 0:03:35]} h6 {[%emt 0:02:16]} 30. Bd2 {[%emt 0:01:14]} Nf6 {[%emt 0:03:45]} 31. Ng6 {[%emt 0:02:21]} Ng4+ {[%emt 0:00:23]} 32. hxg4 {[%emt 0:00:33]} Qxg6 {[%emt 0:00:05]} 33. Qd1 {[%emt 0:04:04]} fxg4 {[%emt 0:00:32]} 34. Rh1 {[%emt 0:00:58]} Rxf2 {[%emt 0:00:41]} 35. Na5 {[%emt 0:03:05]} Qd6+ {[%emt 0:00:50]} 36. Kg1 {[%emt 0:00:24]} Qg3 {[%emt 0:00:08]} 37. Rh2 {[%emt 0:00:58]} Ba8 {[%emt 0:00:48]} 38. Rf1 {[%emt 0:01:14]} Ref8 {[%emt 0:00:22]} 39. Re1 {[%emt 0:01:35]} e3 {[%emt 0:00:32]} 40. Re2 {[%emt 0:00:00]} exd2 {[%emt 0:00:00]} 41. Rxd2 {[%emt 0:04:40]} Rf1+ {[%emt 0:00:11]} 42. Qxf1 {[%emt 0:00:23]} Rxf1+ {[%emt 0:00:02]} 43. Kxf1 {[%emt 0:00:13]} Qxh2 {[%emt 0:00:07]} 44. Re2 {[%emt 0:00:38]} Qh1+ {[%emt 0:00:03]} 45. Kf2 {[%emt 0:00:11]} Qxg2+ {[%emt 0:00:05]} 46. Ke1 {[%emt 0:00:14]} Qg1+ {[%emt 0:00:13]} 47. Kd2 {[%emt 0:00:22]} h5 {[%emt 0:00:29]} 48. Re6 {[%emt 0:02:35]} Bh6+ {[%emt 0:00:23]} 49. Rxh6 {[%emt 0:00:26]} Qe3+ {[%emt 0:00:04]} 50. Kd1 {[%emt 0:00:09]} Bf3# {[%emt 0:00:05]} 0-1

[Event "FIDE WCCC U8 2018"]
[Site "Santiago de Compostela"]
[Date "2018.11.15"]
[Round "11"]
[White "Finek, Vaclav"]
[Black "Yonal, Timur"]
[Result "1-0"]
[ECO "D30"]
[WhiteElo "1942"]
[BlackElo "1524"]
[Annotator "NA"]
[PlyCount "65"]
[EventDate "2018.11.04"]
[EventType "swiss"]
[EventCountry "ESP"]
[SourceTitle "playchess.com"]
[Source "ChessBase"]
[SourceQuality "1"]
[TimeControl "40/5400+30:1800+30"]

1. d4 {[%emt 0:00:00]} d5 {[%emt 0:00:00]} 2. c4 {[%emt 0:00:00]} e6 {[%emt 0:00:00]} 3. Nf3 {[%emt 0:00:00]} Nf6 {[%emt 0:00:00]} 4. e3 {[%emt 0:00:00]} Be7 {[%emt 0:00:01]} 5. Bd3 {[%emt 0:00:00]} dxc4 {[%emt 0:00:41]} 6. Bxc4 {[%emt 0:00:00]} c5 {[%emt 0:00:58]} 7. O-O {[%emt 0:00:24]} O-O {[%emt 0:00:16]} 8. Nc3 {[%emt 0:01:45]} a6 {[%emt 0:01:27]} 9. Bd3 {[%emt 0:06:36] LiveBook: 6 Games D37: Queen's Gambit Declined: 5 Bf4} (9. Qe2 b5 10. Bb3 Bb7 11. Rd1 Nbd7 12. e4 b4 13. d5 bxc3 14. dxe6 fxe6 15. Ng5 Qb6 16. Bxe6+ Kh8 17. Bxd7 h6 18. Ne6 Rf7 19. bxc3 Bxe4 {1-0 (39) Cori Tello,J (2657)-Rambaldi,F (2574) Saint Louis 2017}) 9... b5 {[%emt 0:02:43]} 10. Ne4 $146 {[%emt 0:03:54]} ({Predecessor:} 10. a3 Nbd7 11. Qe2 Bb7 12. Rd1 Qb6 13. Bc2 Rfd8 14. h3 Rac8 15. e4 cxd4 16. Rxd4 Qc7 17. Be3 Bc5 18. Rd2 Bxe3 19. Qxe3 Ne5 20. Nxe5 Rxd2 21. Qxd2 Qxe5 {1-0 (40) Orsag,M (2428)-Trmal,J (2286) Czechia 2008}) 10... Nxe4 {[%emt 0:03:16]} (10... cxd4 $11 11. Nxf6+ (11. exd4 Bb7 $11) 11... Bxf6) 11. Bxe4 {[%emt 0:00:16]} Ra7 {[%emt 0:00:08]} 12. dxc5 {[%emt 0:01:37]} Bxc5 {[%emt 0:00:46]} 13. Bxh7+ {[%emt 0:01:27]} Kxh7 {[%emt 0:10:45]} 14. Qc2+ {[%emt 0:00:03]} Kg8 {[%emt 0:15:20]} 15. Qxc5 {[%emt 0:00:09]} Rc7 {[%emt 0:01:02]} 16. Qh5 {[%emt 0:05:06]} f6 {[%emt 0:01:35]} 17. Bd2 {[%emt 0:07:47]} e5 {[%emt 0:02:20]} 18. Ba5 {[%emt 0:01:15]} Qe7 {[%emt 0:03:41]} 19. Bxc7 {[%emt 0:00:12]} Qxc7 {[%emt 0:00:32]} 20. Nh4 {[%emt 0:06:00]} Bd7 {[%emt 0:05:18]} 21. Rac1 {[%emt 0:02:46]} Qd8 {[%emt 0:01:12]} 22. Rfd1 {[%emt 0:00:30]} Qb6 {[%emt 0:12:06]} 23. Rxd7 {[%emt 0:03:49]} Nxd7 {[%emt 0:00:20]} 24. Nf5 {[%emt 0:00:01]} Qe6 {[%emt 0:31:05]} 25. Qg4 {[%emt 0:00:15]} Qxf5 {[%emt 0:00:18]} 26. Qxf5 {[%emt 0:00:02]} Nb6 {[%emt 0:01:04]} 27. Qe6+ {[%emt 0:00:15]} Kh8 {[%emt 0:00:12]} 28. Rc7 {[%emt 0:00:31]} Rd8 {[%emt 0:00:18]} 29. g3 {[%emt 0:00:12]} Nd5 {[%emt 0:00:14]} 30. Ra7 {[%emt 0:00:18]} Nb4 {[%emt 0:01:14]} 31. Qf7 {[%emt 0:00:30]} Rd1+ {[%emt 0:00:45]} 32. Kg2 {[%emt 0:00:01]} Rd7 {[%emt 0:00:09]} 33. Rxd7 {[%emt 0:00:05]} 1-0

[Event "FIDE WCCC U8 2018"]
[Site "Santiago de Compostela"]
[Date "2018.11.15"]
[Round "11"]
[White "Begmuratov, Khumoyun"]
[Black "Azadaliyev, Jahandar"]
[Result "1/2-1/2"]
[ECO "B17"]
[WhiteElo "1880"]
[BlackElo "1674"]
[Annotator "NA"]
[PlyCount "128"]
[EventDate "2018.11.04"]
[EventType "swiss"]
[EventCountry "ESP"]
[SourceTitle "playchess.com"]
[Source "ChessBase"]
[SourceQuality "1"]
[TimeControl "40/5400+30:1800+30"]

1. e4 {[%emt 0:00:00]} c6 {[%emt 0:00:28]} 2. d4 {[%emt 0:00:00]} d5 {[%emt 0:00:32]} 3. Nd2 {[%emt 0:00:00]} dxe4 {[%emt 0:00:13]} 4. Nxe4 {[%emt 0:00:00]} Nd7 {[%emt 0:00:22]} 5. Nf3 {[%emt 0:00:07]} Ngf6 {[%emt 0:00:10]} 6. Nc3 {[%emt 0:00:37]} Nb6 {[%emt 0:01:38] LiveBook: 5 Games B17: Caro-Kann: Modern Line (4...Nd7)} 7. h3 {[%emt 0:00:14]} Bf5 {[%emt 0:00:16]} (7... g6 8. Bd3 Bg7 9. O-O O-O 10. Re1 Qc7 11. Bg5 e6 12. Ne5 Nfd5 13. Bh4 Nd7 14. Ne4 Nxe5 15. dxe5 Bxe5 {1-0 (54) Paravyan,D (2620)-Bocharov,D (2594) Sochi 2018}) 8. Bd3 {[%emt 0:00:10]} Bxd3 {[%emt 0:00:35]} 9. Qxd3 {[%emt 0:00:27]} e6 {[%emt 0:00:21]} 10. O-O {[%emt 0:00:18]} Bd6 {[%emt 0:00:22]} 11. Ne2 {[%emt 0:01:46]} h6 $146 {[%emt 0:01:25]} ({Predecessor:} 11... Qc7 12. c4 Be7 13. Bf4 Qd7 14. Ne5 {1-0 (29) Kravtsov,V (1961)-Krabbenbos,J (1551) LSS email 2010}) 12. c4 {[%emt 0:00:27]} O-O {[%emt 0:01:16]} 13. b3 {[%emt 0:09:17]} Nbd7 {[%emt 0:07:30]} 14. Bb2 {[%emt 0:01:00]} Qa5 {[%emt 0:01:51]} 15. Rad1 {[%emt 0:11:03]} Rad8 {[%emt 0:01:05]} 16. Qc2 {[%emt 0:02:08]} Qh5 {[%emt 0:01:54]} 17. Rfe1 {[%emt 0:01:33]} Rfe8 {[%emt 0:05:45]} 18. Nc3 {[%emt 0:08:33]} a6 {[%emt 0:09:25]} 19. Ne4 {[%emt 0:00:34]} Nxe4 {[%emt 0:08:05]} 20. Qxe4 {[%emt 0:00:35]} Nf6 {[%emt 0:00:16]} 21. Qc2 {[%emt 0:02:34]} Qf5 {[%emt 0:02:06]} 22. Qc3 {[%emt 0:19:16]} Ne4 {[%emt 0:03:19]} 23. Qe3 {[%emt 0:00:18]} Ng5 {[%emt 0:08:51]} 24. Nxg5 {[%emt 0:04:03]} hxg5 {[%emt 0:00:25]} 25. Qe4 {[%emt 0:04:44]} Qxe4 {[%emt 0:01:51]} 26. Rxe4 {[%emt 0:00:08]} f6 {[%emt 0:00:41]} 27. g3 {[%emt 0:03:10]} Kf7 {[%emt 0:00:29]} 28. Kg2 {[%emt 0:00:07]} Rc8 {[%emt 0:00:54]} 29. Bc3 {[%emt 0:02:44]} b6 {[%emt 0:01:08]} 30. b4 {[%emt 0:00:58]} Rcd8 {[%emt 0:00:14]} 31. a4 {[%emt 0:00:19]} Rd7 {[%emt 0:00:14]} 32. Rde1 {[%emt 0:01:51]} Rde7 {[%emt 0:00:43]} 33. Kf3 {[%emt 0:02:12]} Rd8 {[%emt 0:00:54]} 34. R4e3 {[%emt 0:01:15]} Bc7 {[%emt 0:01:11]} 35. Ke4 {[%emt 0:01:31]} Kg6 {[%emt 0:00:49]} 36. Kf3 {[%emt 0:03:23]} Kf7 {[%emt 0:00:24]} 37. Kg2 {[%emt 0:00:26]} Bd6 {[%emt 0:00:18]} 38. Rd1 {[%emt 0:00:49]} Bc7 {[%emt 0:00:05]} 39. Rde1 {[%emt 0:00:09]} Bd6 {[%emt 0:00:06]} 40. R3e2 {[%emt 0:00:00]} Bc7 {[%emt 0:00:00]} 41. Kf3 {[%emt 0:02:32]} Ree8 {[%emt 0:00:42]} 42. h4 {[%emt 0:01:36]} gxh4 {[%emt 0:00:33]} 43. gxh4 {[%emt 0:00:05]} Re7 {[%emt 0:00:08]} 44. Kg4 {[%emt 0:01:40]} Bb8 {[%emt 0:01:06]} 45. f4 {[%emt 0:00:36]} f5+ {[%emt 0:02:31]} 46. Kg3 {[%emt 0:01:26]} Bc7 {[%emt 0:00:55]} 47. Kf3 {[%emt 0:02:17]} g6 {[%emt 0:02:04]} 48. Rg1 {[%emt 0:01:11]} Rh8 {[%emt 0:02:20]} 49. Rh2 {[%emt 0:00:51]} Rh6 {[%emt 0:00:31]} 50. Rg5 {[%emt 0:06:03]} Rh5 {[%emt 0:02:02]} 51. Rxh5 {[%emt 0:00:16]} gxh5 {[%emt 0:00:07]} 52. Rg2 {[%emt 0:00:30]} Bd8 $11 {[%emt 0:00:31]} 53. d5 {[%emt 0:04:56]} cxd5 {[%emt 0:00:16]} 54. cxd5 {[%emt 0:00:42]} exd5 {[%emt 0:00:43]} 55. Be5 {[%emt 0:00:01]} Re6 {[%emt 0:00:35]} 56. Rg7+ {[%emt 0:00:17]} Ke8 {[%emt 0:00:17]} 57. Rh7 {[%emt 0:00:10]} Bxh4 {[%emt 0:00:27]} 58. Rxh5 {[%emt 0:00:20]} Bf6 {[%emt 0:02:19]} 59. Rxf5 {[%emt 0:00:20]} Bxe5 {[%emt 0:00:13]} 60. Rxe5 {[%emt 0:01:01]} Rxe5 {[%emt 0:00:29]} 61. fxe5 {[%emt 0:00:07]} Ke7 {[%emt 0:00:19]} 62. Ke3 {[%emt 0:00:11]} Kd7 {[%emt 0:00:26]} 63. Kd3 {[%emt 0:00:16]} Ke7 {[%emt 0:00:10]} 64. Kc3 {[%emt 0:00:06]} Kd7 {[%emt 0:00:05]} 1/2-1/2

[Event "FIDE WCCC U8 2018"]
[Site "Santiago de Compostela"]
[Date "2018.11.15"]
[Round "11"]
[White "Nurgaliyev, Sauat"]
[Black "Lu, Miaoyi"]
[Result "0-1"]
[ECO "B19"]
[WhiteElo "1764"]
[BlackElo "1717"]
[Annotator "NA"]
[PlyCount "74"]
[EventDate "2018.11.04"]
[EventType "swiss"]
[EventCountry "ESP"]
[SourceTitle "playchess.com"]
[Source "ChessBase"]
[SourceQuality "1"]
[TimeControl "40/5400+30:1800+30"]

1. e4 {[%emt 0:00:00]} c6 {[%emt 0:00:00]} 2. d4 {[%emt 0:00:00]} d5 {[%emt 0:00:00]} 3. Nd2 {[%emt 0:00:00]} dxe4 {[%emt 0:00:00]} 4. Nxe4 {[%emt 0:00:00]} Bf5 {[%emt 0:00:00]} 5. Ng3 {[%emt 0:00:08]} Bg6 {[%emt 0:00:01]} 6. h4 {[%emt 0:00:35]} h6 {[%emt 0:00:05]} 7. Nf3 {[%emt 0:00:26]} Nd7 {[%emt 0:00:05]} 8. h5 {[%emt 0:00:26]} Bh7 {[%emt 0:00:03]} 9. Bd3 {[%emt 0:00:30]} Bxd3 {[%emt 0:00:11]} 10. Qxd3 {[%emt 0:00:02]} e6 {[%emt 0:00:22]} 11. Bd2 {[%emt 0:00:53]} Ngf6 {[%emt 0:00:17]} 12. O-O-O {[%emt 0:00:55]} Be7 {[%emt 0:00:13]} 13. Ne4 {[%emt 0:00:50]} Nxe4 {[%emt 0:00:30]} 14. Qxe4 {[%emt 0:00:02]} Nf6 {[%emt 0:00:21]} 15. Qd3 {[%emt 0:00:39]} O-O {[%emt 0:03:04]} 16. g4 {[%emt 0:01:43]} Nxg4 {[%emt 0:00:15]} 17. Qe2 {[%emt 0:00:30]} Nf6 {[%emt 0:12:02]} 18. Rhg1 {[%emt 0:05:01]} Kh8 {[%emt 0:02:55]} 19. c4 {[%emt 0:20:11]} b5 {[%emt 0:06:17]} 20. Ne5 {[%emt 0:00:30]} bxc4 {[%emt 0:00:30]} 21. f3 {[%emt 0:18:41]} Nd5 {[%emt 0:17:49]} 22. Qxc4 {[%emt 0:00:30]} Rc8 {[%emt 0:05:07]} 23. Kb1 {[%emt 0:23:30]} c5 {[%emt 0:04:24]} 24. dxc5 {[%emt 0:00:30]} Bxc5 {[%emt 0:00:30]} 25. Rge1 {[%emt 0:22:01]} Bf2 {[%emt 0:02:48]} 26. Nc6 {[%emt 0:00:30]} Bxe1 {[%emt 0:01:17]} 27. Rxe1 {[%emt 0:03:55]} Qb6 {[%emt 0:01:36]} 28. Qd4 {[%emt 0:00:29]} Rxc6 {[%emt 0:01:22]} 29. Qe5 {[%emt 0:00:30]} f6 {[%emt 0:01:04]} 30. Qe2 {[%emt 0:00:31]} Rb8 {[%emt 0:01:16]} 31. b3 {[%emt 0:00:28]} a5 {[%emt 0:00:37]} 32. Bxh6 {[%emt 0:00:31]} Nc3+ {[%emt 0:00:12]} 33. Ka1 {[%emt 0:00:31]} Nxe2 {[%emt 0:00:06]} 34. Bxg7+ {[%emt 0:00:12]} Kxg7 {[%emt 0:00:03]} 35. Rxe2 {[%emt 0:00:11]} Qd4+ {[%emt 0:00:11]} 36. Kb1 {[%emt 0:00:07]} Qd1+ {[%emt 0:00:02]} 37. Kb2 {[%emt 0:00:07]} Qc1# {[%emt 0:00:02]} 0-1

[Event "FIDE WCCC U8 2018"]
[Site "Santiago de Compostela"]
[Date "2018.11.15"]
[Round "11"]
[White "Schnaider, Ilan"]
[Black "Chen, Ryo"]
[Result "1-0"]
[ECO "B70"]
[WhiteElo "1723"]
[BlackElo "1573"]
[Annotator "NA"]
[PlyCount "51"]
[EventDate "2018.11.04"]
[EventType "swiss"]
[EventCountry "ESP"]
[SourceTitle "playchess.com"]
[Source "ChessBase"]
[SourceQuality "1"]
[TimeControl "40/5400+30:1800+30"]

1. e4 {[%emt 0:00:00]} c5 {[%emt 0:00:00]} 2. Nf3 {[%emt 0:00:13]} d6 {[%emt 0:00:00]} 3. d4 {[%emt 0:00:42]} cxd4 {[%emt 0:00:01]} 4. Nxd4 {[%emt 0:00:04]} Nf6 {[%emt 0:00:07]} 5. Nc3 {[%emt 0:00:24]} g6 {[%emt 0:00:10]} 6. g3 {[%emt 0:00:07]} Bg7 {[%emt 0:00:17]} 7. Bg2 {[%emt 0:00:15]} O-O {[%emt 0:00:21]} 8. O-O {[%emt 0:00:10]} Nc6 {[%emt 0:00:11]} 9. Nde2 {[%emt 0:00:57]} Rb8 {[%emt 0:00:44]} 10. a4 {[%emt 0:00:16]} a6 {[%emt 0:00:26]} 11. Be3 {[%emt 0:00:29]} b5 {[%emt 0:03:54]} 12. axb5 {[%emt 0:00:16]} axb5 {[%emt 0:00:14]} 13. h3 {[%emt 0:01:28]} Bd7 {[%emt 0:08:57]} 14. Nd5 {[%emt 0:01:06]} Nxd5 {[%emt 0:04:49]} 15. exd5 {[%emt 0:01:28]} Na5 {[%emt 0:01:05]} 16. Bd4 {[%emt 0:00:28]} Bxd4 {[%emt 0:06:15]} 17. Nxd4 {[%emt 0:00:29]} Qc7 {[%emt 0:10:13]} 18. Qe1 {[%emt 0:01:25]} Nc4 {[%emt 0:06:44]} 19. Qxe7 {[%emt 0:00:28]} Rfe8 {[%emt 0:02:17]} 20. Qf6 {[%emt 0:01:26]} Nxb2 {[%emt 0:01:58]} 21. Ra6 {[%emt 0:07:10]} Rb6 {[%emt 0:08:09]} 22. Rxb6 {[%emt 0:00:28]} Qxb6 {[%emt 0:00:15]} 23. Nc6 {[%emt 0:00:38]} Nc4 {[%emt 0:05:57]} 24. Ne7+ {[%emt 0:06:13]} Kf8 {[%emt 0:00:16]} 25. Re1 {[%emt 0:00:24]} Ne5 {[%emt 0:15:58]} 26. Rxe5 1-0

[Event "FIDE WCCC U8 2018"]
[Site "Santiago de Compostela"]
[Date "2018.11.15"]
[Round "11"]
[White "Usov, Aleksandr E."]
[Black "Khazhatuly, Alikhan"]
[Result "1-0"]
[ECO "D58"]
[WhiteElo "1640"]
[BlackElo "1474"]
[Annotator "NA"]
[PlyCount "97"]
[EventDate "2018.11.04"]
[EventType "swiss"]
[EventCountry "ESP"]
[SourceTitle "playchess.com"]
[Source "ChessBase"]
[SourceQuality "1"]
[TimeControl "40/5400+30:1800+30"]

1. d4 {[%emt 0:00:00]} d5 {[%emt 0:00:00]} 2. c4 {[%emt 0:00:00]} e6 {[%emt 0:00:00]} 3. Nc3 {[%emt 0:00:00]} Nf6 {[%emt 0:00:00]} 4. Bg5 {[%emt 0:00:11]} Be7 {[%emt 0:00:00]} 5. e3 {[%emt 0:00:08]} h6 {[%emt 0:00:16]} 6. Bh4 {[%emt 0:00:47]} O-O {[%emt 0:00:14]} 7. Nf3 {[%emt 0:00:11]} b6 {[%emt 0:02:20]} 8. cxd5 {[%emt 0:02:59]} exd5 {[%emt 0:00:07]} 9. Bd3 {[%emt 0:02:15]} Bb7 {[%emt 0:01:18]} 10. O-O {[%emt 0:00:42]} Nbd7 {[%emt 0:00:29]} 11. Rc1 {[%emt 0:21:20]} c5 {[%emt 0:04:37]} 12. Bc2 {[%emt 0:01:42]} Rc8 13. Bf5 {[%emt 0:03:26]} cxd4 {[%emt 0:07:41]} 14. Nxd4 {[%emt 0:08:07]} Ra8 {[%emt 0:22:48]} 15. Ncb5 {[%emt 0:02:20]} a6 {[%emt 0:03:57]} 16. Nc3 {[%emt 0:01:37]} Ne5 {[%emt 0:10:07]} 17. Qe2 {[%emt 0:07:22]} Nfd7 18. Bxe7 {[%emt 0:01:23]} Qxe7 {[%emt 0:00:41]} 19. Bxd7 {[%emt 0:00:28]} Qxd7 {[%emt 0:05:19]} 20. Rfd1 {[%emt 0:01:09]} Rfd8 {[%emt 0:01:06]} 21. Qh5 {[%emt 0:04:27]} Ng6 {[%emt 0:04:53]} 22. Rd2 {[%emt 0:00:51]} Qe7 {[%emt 0:02:00]} 23. Rcd1 {[%emt 0:02:58]} Qe5 {[%emt 0:04:58]} 24. Qe2 {[%emt 0:02:03]} Rd7 {[%emt 0:01:40]} 25. Nc2 {[%emt 0:01:59]} Rad8 {[%emt 0:00:07]} 26. Rd4 {[%emt 0:00:43]} b5 {[%emt 0:01:00]} 27. Qg4 {[%emt 0:02:44]} Qe6 {[%emt 0:03:40]} 28. Qh5 {[%emt 0:03:06]} Ne7 {[%emt 0:01:07]} 29. R4d2 {[%emt 0:01:56]} f5 {[%emt 0:01:56]} 30. Nd4 {[%emt 0:01:44]} Qf6 {[%emt 0:00:20]} 31. Nb3 {[%emt 0:00:17]} Qc6 {[%emt 0:00:19]} 32. Na5 {[%emt 0:00:36]} Qb6 {[%emt 0:00:20]} 33. Nxb7 {[%emt 0:00:14]} Qxb7 {[%emt 0:00:04]} 34. Ne2 {[%emt 0:00:46]} Qc6 {[%emt 0:00:32]} 35. Rc1 {[%emt 0:04:44]} Qb6 {[%emt 0:00:50]} 36. Nd4 {[%emt 0:00:40]} Qf6 {[%emt 0:00:31]} 37. Rdc2 {[%emt 0:02:55]} g5 {[%emt 0:02:48]} 38. Qe2 {[%emt 0:00:58]} Kg7 39. Qd3 {[%emt 0:00:52]} Rd6 {[%emt 0:04:22]} 40. Qa3 {[%emt 0:00:00]} R8d7 {[%emt 0:00:00]} 41. Rc7 {[%emt 0:01:38]} Kf7 {[%emt 0:01:33]} 42. Qc5 {[%emt 0:00:55]} Rxc7 {[%emt 0:02:20]} 43. Qxc7 {[%emt 0:01:06]} Kg7 {[%emt 0:00:29]} 44. Nxf5+ {[%emt 0:00:22]} Qxf5 {[%emt 0:00:23]} 45. Qxe7+ {[%emt 0:00:12]} Qf7 {[%emt 0:00:02]} 46. Qxd6 {[%emt 0:00:13]} Qf6 {[%emt 0:00:01]} 47. Qxd5 {[%emt 0:00:19]} Qxb2 {[%emt 0:00:11]} 48. Rc7+ {[%emt 0:00:11]} Kg6 {[%emt 0:00:07]} 49. Qf7# {[%emt 0:00:07]} 1-0